bitfinex-derivatives/quotes_BNBF0:USTF0_20250715
["timestamp","ask_amount","ask_price","bid_price","bid_amount"]
[1752602543970,0.97342917,688.53,687.13,0.25309643]
[1752602543971,0.97342917,688.59,687.39,0.96516974]
[1752602544265,0.97342917,688.59,687.38,0.96516974]
[1752602544867,0.97342917,688.62,687.41,0.96516974]
[1752602545267,0.97342917,688.63,687.4,0.96516974]
[1752602545471,0.97342917,688.62,687.4,0.96516974]
[1752602546073,0.97342917,688.63,687.4,0.96516974]
[1752602547372,0.97342917,688.63,687.39,0.96516974]
[1752602548173,0.97342917,688.64,687.38,0.96516974]
[1752602549072,0.97342917,688.65,687.38,0.96516974]
[1752602549274,0.97342917,688.65,687.37,0.96516974]
[1752602550170,0.97342917,688.66,687.37,0.96516974]
[1752602550375,0.97342917,688.66,687.36,0.96516974]
[1752602551374,0.97342917,688.67,687.36,0.96516974]
[1752602551872,0.97342917,688.66,687.36,0.96516974]
[1752602552171,0.25276186,688.89,687.13,0.25309643]
[1752602552172,0.97342917,688.65,687.37,0.96516974]
[1752602552572,0.97342917,688.58,687.3,0.96516974]
[1752602552776,0.97342917,688.57,687.29,0.96516974]
[1752602553373,0.97342917,688.58,687.29,0.96516974]
[1752602553875,0.97342917,688.53,687.26,0.96516974]
[1752602554376,0.97342917,688.53,687.25,0.96516974]
[1752602554577,0.97342917,688.53,687.26,0.96516974]
[1752602555274,0.97342917,688.53,687.25,0.96516974]
[1752602556279,0.97342917,688.54,687.25,0.96516974]
[1752602556481,0.97342917,688.49,687.28,0.96516974]
[1752602556982,0.97342917,688.47,687.29,0.96516974]
[1752602557283,0.97342917,688.48,687.29,0.96516974]
[1752602557683,0.97342917,688.55,687.22,0.96516974]
[1752602557884,0.97342917,688.51,687.18,0.96516974]
[1752602558181,0.97342917,688.5,687.17,0.96516974]
[1752602558483,0.97342917,688.49,687.16,0.96516974]
[1752602558784,0.97342917,688.5,687.17,0.96516974]
[1752602559379,0.97342917,688.49,687.17,0.96516974]
[1752602561386,0.97342917,688.48,687.17,0.96516974]
[1752602563388,0.97342917,688.47,687.18,0.96516974]
[1752602564286,0.97342917,688.47,687.19,0.96516974]
[1752602564987,0.97342917,688.4,687.23,0.96516974]
[1752602565190,0.97342917,688.4,687.13,0.25309643]
[1752602565191,0.97342917,688.39,687.24,0.96516974]
[1752602567196,0.97342917,688.38,687.25,0.96516974]
[1752602567596,0.97342917,688.37,687.26,0.96516974]
[1752602568491,0.97342917,688.36,687.26,0.96516974]
[1752602568691,0.97342917,688.4,687.24,0.96516974]
[1752602569293,0.97342917,688.39,687.25,0.96516974]
[1752602569595,0.97342917,688.42,687.23,0.96516974]
[1752602570195,0.97342917,688.41,687.24,0.96516974]
[1752602571191,0.97342917,688.4,687.25,0.96516974]
[1752602571693,0.97342917,688.47,687.21,0.96516974]
[1752602572196,0.97342917,688.45,687.23,0.96516974]
[1752602572993,0.97342917,688.43,687.24,0.96516974]
[1752602573197,0.97342917,688.42,687.23,0.96516974]
[1752602573396,0.25276186,688.89,687.25,0.96516974]
[1752602573397,0.97342917,688.41,687.25,0.96516974]
[1752602574198,0.97342917,688.4,687.26,0.96516974]
[1752602574799,0.97342917,688.49,687.34,0.96516974]
[1752602575296,0.97342917,688.48,687.35,0.96516974]
[1752602575497,0.97342917,688.47,687.35,0.96516974]
[1752602576401,0.97342917,688.46,687.37,0.96516974]
[1752602576903,0.97342917,688.41,687.4,0.96516974]
[1752602577201,0.97342917,688.36,687.36,0.96516974]
[1752602577402,0.97342917,688.34,687.38,0.96516974]
[1752602577604,0.97342917,688.33,687.37,0.96516974]
[1752602578499,0.97342917,688.32,687.4,0.96516974]
[1752602578701,0.97342917,688.31,687.39,0.96516974]
[1752602579302,0.97342917,688.26,687.43,0.96516974]
[1752602580000,0.97342917,688.23,687.41,0.96516974]
[1752602580799,0.97342917,688.25,687.4,0.96516974]
[1752602581403,0.97342917,688.21,687.42,0.96516974]
[1752602582105,0.97342917,688.21,687.43,0.96516974]
[1752602582305,0.97342917,688.18,687.46,0.96516974]
[1752602583301,0.97342917,688.17,687.47,0.96516974]
[1752602584601,0.97342917,688.16,687.47,0.96516974]
[1752602585403,0.97342917,688.16,687.48,0.96516974]
[1752602586509,0.25276186,688.89,687.49,0.96516974]
[1752602586510,0.97342917,688.15,687.49,0.96516974]
[1752602588209,0.97342917,688.15,687.5,0.96516974]
[1752602589310,0.97342917,688.14,687.5,0.96516974]
[1752602589607,0.97342917,688.12,687.52,0.96516974]
[1752602591407,0.97342917,688.12,687.53,0.96516974]
[1752602591708,0.97342917,688.11,687.54,0.96516974]
[1752602592108,0.97342917,688.12,687.55,0.96516974]
[1752602592309,0.97342917,688.18,687.6,0.96516974]
[1752602595213,0.97342917,688.22,687.58,0.96516974]
[1752602596614,0.97342917,688.22,687.57,0.96516974]
[1752602600414,0.97342917,688.22,687.58,0.96516974]
[1752602601313,0.97342917,688.22,687.57,0.96516974]
[1752602601914,0.97342917,688.23,687.56,0.96516974]
[1752602602114,0.97342917,688.24,687.57,0.96516974]
[1752602602313,0.97342917,688.24,687.56,0.96516974]
[1752602602818,0.97342917,688.24,687.57,0.96516974]
[1752602603419,0.97342917,688.23,687.57,0.96516974]
[1752602603620,0.97342917,688.23,687.56,0.96516974]
[1752602604222,0.97342917,688.23,687.57,0.96516974]
[1752602604520,0.97342917,688.22,687.57,0.96516974]
[1752602604920,0.97342917,688.22,687.58,0.96516974]
[1752602605221,0.97342917,688.21,687.58,0.96516974]
[1752602605817,0.97342917,688.23,687.59,0.96516974]
[1752602606322,0.97342917,688.22,687.6,0.96516974]
[1752602607125,0.97342917,688.21,687.6,0.96516974]
[1752602607318,0.97342917,688.21,687.61,0.96516974]
[1752602607519,0.97342917,688.26,687.66,0.96516974]
[1752602608324,0.97342917,688.25,687.66,0.96516974]
[1752602608521,0.97342917,688.24,687.67,0.96516974]
[1752602610129,0.97342917,688.23,687.67,0.96516974]
[1752602610422,0.97342917,688.22,687.66,0.96516974]
[1752602611224,0.97342917,688.21,687.66,0.96516974]
[1752602611426,0.97342917,688.19,687.68,0.96516974]
[1752602611822,0.97342917,688.18,687.68,0.96516974]
[1752602612627,0.97342917,688.19,687.68,0.96516974]
[1752602613224,0.97342917,688.19,687.67,0.96516974]
[1752602614430,0.97342917,688.2,687.67,0.96516974]
[1752602615226,0.97342917,688.22,687.65,0.96516974]
[1752602616930,0.97342917,688.18,687.61,0.96516974]
[1752602617129,0.97342917,688.18,687.6,0.96516974]
[1752602618335,0.97342917,688.19,687.6,0.96516974]
[1752602618535,0.97342917,688.18,687.6,0.96516974]
[1752602619639,0.97342917,688.19,687.6,0.96516974]
[1752602619838,0.25276186,688.89,687.13,0.25309643]
[1752602619839,0.97342917,688.21,687.58,0.96516974]
[1752602620438,0.97342917,688.21,687.59,0.96516974]
[1752602620634,0.97342917,688.21,687.58,0.96516974]
[1752602621538,0.97342917,688.21,687.59,0.96516974]
[1752602625141,0.97342917,688.2,687.6,0.96516974]
[1752602625942,1.2979055,688.36,687.13,0.25309643]
[1752602625943,0.97342917,688.21,687.59,0.96516974]
[1752602626242,0.97342917,688.2,687.6,0.96516974]
[1752602627041,0.97342917,688.2,687.45,1.2868929]
[1752602627042,0.97342917,688.18,687.62,0.96516974]
[1752602627439,0.97342917,688.19,687.62,0.96516974]
[1752602628543,0.97342917,688.19,687.13,0.25309643]
[1752602628544,0.97342917,688.26,687.69,0.96516974]
[1752602629044,0.97342917,688.26,687.7,0.96516974]
[1752602629244,0.97342917,688.25,687.7,0.96516974]
[1752602629540,0.97342917,688.26,687.7,0.96516974]
[1752602629942,0.97342917,688.27,687.7,0.96516974]
[1752602630246,0.97342917,688.3,687.68,0.96516974]
[1752602631043,0.97342917,688.3,687.67,0.96516974]
[1752602631456,0.97342917,688.32,687.65,0.96516974]
[1752602636444,0.97342917,688.33,687.65,0.96516974]
[1752602636747,0.97342917,688.32,687.65,0.96516974]
[1752602637449,0.97342917,688.3,687.63,0.96516974]
[1752602638449,0.97342917,688.3,687.62,0.96516974]
[1752602639250,0.97342917,688.3,687.63,0.96516974]
[1752602639947,0.97342917,688.27,687.65,0.96516974]
[1752602640554,0.97342917,688.27,687.13,0.25309643]
[1752602640555,0.97342917,688.21,687.69,0.96516974]
[1752602640850,0.97342917,688.2,687.68,0.96516974]
[1752602641053,0.97342917,688.15,687.63,0.96516974]
[1752602642451,0.97342917,688.14,687.63,0.96516974]
[1752602643454,0.97342917,688.15,687.63,0.96516974]
[1752602643754,0.97342917,688.14,687.63,0.96516974]
[1752602645258,0.97342917,688.16,687.62,0.96516974]
[1752602646259,0.97342917,688.16,687.63,0.96516974]
[1752602647454,0.97342917,688.15,687.63,0.96516974]
[1752602648157,0.97342917,688.15,687.64,0.96516974]
[1752602648357,0.97342917,688.14,687.64,0.96516974]
[1752602650158,0.97342917,688.15,687.63,0.96516974]
[1752602651459,0.97342917,688.15,687.64,0.96516974]
[1752602652456,0.97342917,688.15,687.63,0.96516974]
[1752602655164,0.97342917,688.14,687.64,0.96516974]
[1752602659164,0.97342917,688.18,687.62,0.96516974]
[1752602659463,0.97342917,688.18,687.61,0.96516974]
[1752602661562,0.97342917,688.18,687.6,0.96516974]
[1752602661867,0.97342917,688.17,687.6,0.96516974]
[1752602662667,0.97342917,688.15,687.62,0.96516974]
[1752602662966,0.97342917,688.11,687.58,0.96516974]
[1752602663162,0.97342917,688.08,687.54,0.96516974]
[1752602663364,0.97342917,688.07,687.54,0.96516974]
[1752602663566,0.97342917,688.06,687.53,0.96516974]
[1752602663863,0.97342917,688.07,687.53,0.96516974]
[1752602664363,0.97342917,688.07,687.52,0.96516974]
[1752602665163,1.9468583,688.36,687.13,0.25309643]
[1752602665164,0.97342917,688.05,687.5,0.96516974]
[1752602665364,0.97342917,688.06,687.5,0.96516974]
[1752602665767,0.97342917,688.03,687.48,0.96516974]
[1752602665964,0.97342917,688.04,687.47,0.96516974]
[1752602666368,0.97342917,688.05,687.47,0.96516974]
[1752602666569,0.97342917,688.03,687.48,0.96516974]
[1752602667265,0.97342917,688.04,687.47,0.96516974]
[1752602667466,0.97342917,688.04,687.46,0.96516974]
[1752602667665,0.97342917,688.06,687.45,0.96516974]
[1752602667964,0.97342917,688.06,687.29,1.2868929]
[1752602667965,0.97342917,688.06,687.44,0.96516974]
[1752602668165,0.97342917,688.02,687.41,0.96516974]
[1752602668466,0.97342917,688.03,687.4,0.96516974]
[1752602669471,0.97342917,688.03,687.39,0.96516974]
[1752602670168,0.97342917,688.06,687.38,0.96516974]
[1752602670367,0.97342917,688.06,687.37,0.96516974]
[1752602670970,0.97342917,688.07,687.37,0.96516974]
[1752602671171,0.97342917,688.08,687.38,0.96516974]
[1752602671373,0.97342917,688.09,687.38,0.96516974]
[1752602672274,0.97342917,688.09,687.37,0.96516974]
[1752602674672,0.97342917,688.08,687.38,0.96516974]
[1752602675374,0.97342917,688.08,687.37,0.96516974]
[1752602676275,0.97342917,688.11,687.35,0.96516974]
[1752602676479,0.97342917,688.12,687.35,0.96516974]
[1752602678181,0.97342917,688.12,687.17,1.2868929]
[1752602678182,0.97342917,688.1,687.36,0.96516974]
[1752602678376,0.97342917,688.09,687.37,0.96516974]
[1752602678681,0.97342917,688.09,687.36,0.96516974]
[1752602680179,0.97342917,688.1,687.36,0.96516974]
[1752602680380,0.97342917,688.1,687.35,0.96516974]
[1752602683288,0.97342917,688.11,687.35,0.96516974]
[1752602685290,0.97342917,688.11,687.19,1.2868929]
[1752602685291,0.97342917,688.11,687.34,0.96516974]
[1752602685993,0.97342917,688.07,687.37,0.96516974]
[1752602687193,0.97342917,688.09,687.35,0.96516974]
[1752602687690,0.97342917,688.08,687.36,0.96516974]
[1752602687892,0.25286747,688.7,687.36,0.96516974]
[1752602687893,0.97342917,688.09,687.36,0.96516974]
[1752602689796,1.2979055,688.23,687.21,1.2868929]
[1752602689996,0.97761632,688.08,687.36,0.97145781]
[1752602693398,0.97761632,688.08,687.37,0.97145781]
[1752602694398,0.97761632,688.07,687.37,0.97145781]
[1752602694997,0.97761632,688.07,687.36,0.97145781]
[1752602695198,0.97761632,688.06,687.36,0.97145781]
[1752602695597,0.97761632,688.08,687.35,0.97145781]
[1752602696100,0.97761632,688.07,687.36,0.97145781]
[1752602696599,0.97761632,688.08,687.37,0.97145781]
[1752602696996,0.97761632,688.07,687.37,0.97145781]
[1752602697597,0.97761632,688.07,687.38,0.97145781]
[1752602698200,0.97761632,688.08,687.38,0.97145781]
[1752602698502,0.97761632,688.07,687.38,0.97145781]
[1752602699502,0.97761632,688.07,687.39,0.97145781]
[1752602702106,0.97761632,688.06,687.39,0.97145781]
[1752602704207,0.97761632,688.07,687.41,0.97145781]
[1752602705501,0.97761632,688.07,687.45,0.97145781]
[1752602705708,0.97761632,688.08,687.46,0.97145781]
[1752602706003,0.97761632,688.09,687.47,0.97145781]
[1752602706911,0.97761632,688.08,687.48,0.97145781]
[1752602708609,0.97761632,688.07,687.48,0.97145781]
[1752602709812,0.97761632,688.1,687.51,0.97145781]
[1752602710408,0.97761632,688.1,687.52,0.97145781]
[1752602710709,0.97761632,688.12,687.51,0.97145781]
[1752602711408,0.97761632,688.13,687.51,0.97145781]
[1752602711611,0.97761632,688.13,687.5,0.97145781]
[1752602712207,0.97761632,688.12,687.5,0.97145781]
[1752602712412,0.97761632,688.12,687.51,0.97145781]
[1752602714512,0.97761632,688.11,687.51,0.97145781]
[1752602715313,0.97761632,688.11,687.52,0.97145781]
[1752602716517,0.97761632,688.1,687.52,0.97145781]
[1752602716817,0.97761632,688.07,687.54,0.97145781]
[1752602717113,0.97761632,688.12,687.5,0.97145781]
[1752602718018,0.97761632,688.12,687.51,0.97145781]
[1752602718414,0.97761632,688.11,687.51,0.97145781]
[1752602718619,0.97761632,688.12,687.51,0.97145781]
[1752602719321,0.97761632,688.09,687.52,0.97145781]
[1752602719520,0.97761632,688.06,687.54,0.97145781]
[1752602719815,0.97761632,688.07,687.54,0.97145781]
[1752602720221,0.97761632,688.06,687.54,0.97145781]
[1752602720516,0.97761632,688.07,687.54,0.97145781]
[1752602721321,0.97761632,688.07,687.55,0.97145781]
[1752602721621,0.97761632,688.07,687.54,0.97145781]
[1752602721924,0.97761632,688.15,687.49,0.97145781]
[1752602723221,0.97761632,688.09,687.43,0.97145781]
[1752602723624,0.97761632,688.08,687.42,0.97145781]
[1752602724626,0.97761632,688.12,687.4,0.97145781]
[1752602725025,0.97761632,688.12,687.39,0.97145781]
[1752602725520,0.97761632,688.08,687.41,0.97145781]
[1752602727026,0.97761632,687.99,687.47,0.97145781]
[1752602727623,0.97761632,687.99,687.46,0.97145781]
[1752602729025,0.97761632,687.9,687.37,0.97145781]
[1752602729329,0.97761632,687.88,687.35,0.97145781]
[1752602729530,0.97761632,687.86,687.32,0.97145781]
[1752602730528,0.97761632,687.92,687.29,0.25294282]
[1752602730832,1.2979055,688.14,687.29,0.25294282]
[1752602730833,0.97761632,687.91,687.29,0.25294282]
[1752602731227,0.97761632,687.92,687.29,0.25294282]
[1752602731426,0.97761632,687.93,687.29,0.25294282]
[1752602732433,0.97761632,687.94,687.29,0.25294282]
[1752602733334,0.97761632,687.88,687.29,0.25294282]
[1752602733535,0.97761632,687.89,687.29,0.25294282]
[1752602734430,0.97761632,687.87,687.29,0.25294282]
[1752602734734,0.97761632,687.86,687.29,0.25294282]
[1752602735337,0.97761632,687.87,687.29,0.25294282]
[1752602735636,0.97761632,687.88,687.29,0.25294282]
[1752602735936,0.97761632,687.87,687.29,0.25294282]
[1752602736536,0.97761632,687.88,687.29,0.25294282]
[1752602737337,0.97761632,687.89,687.29,0.25294282]
[1752602737838,0.97761632,687.95,687.29,0.25294282]
[1752602738334,0.97761632,687.96,687.29,0.25294282]
[1752602739540,0.97761632,687.97,687.29,0.25294282]
[1752602739942,0.97761632,688.01,687.29,0.25294282]
[1752602741342,0.97761632,688.02,687.29,0.25294282]
[1752602741740,0.97761632,688.03,687.29,0.25294282]
[1752602741942,0.97761632,688.04,687.29,0.25294282]
[1752602743143,0.97761632,688.03,687.29,0.25294282]
[1752602743343,0.97761632,688.06,687.29,0.25294282]
[1752602743743,0.97761632,688.05,687.29,0.25294282]
[1752602743939,0.97761632,688.08,687.29,0.25294282]
[1752602744843,0.97761632,687.96,687.29,0.25294282]
[1752602745049,0.97761632,687.95,687.29,0.25294282]
[1752602746152,0.97761632,687.94,687.29,0.25294282]
[1752602746948,0.97761632,687.91,687.29,0.25294282]
[1752602748351,0.97761632,687.92,687.29,0.25294282]
[1752602750049,0.97761632,687.96,687.29,0.25294282]
[1752602750451,0.97761632,687.97,687.29,0.25294282]
[1752602752849,0.97761632,688.0,687.29,0.25294282]
[1752602753052,0.97761632,688.09,687.31,0.97145781]
[1752602754049,0.97761632,688.11,687.31,0.97145781]
[1752602754349,0.97761632,688.11,687.3,0.97145781]
[1752602754751,0.97761632,688.1,687.31,0.97145781]
[1752602755054,0.97761632,688.17,687.37,0.97145781]
[1752602756555,0.97761632,688.19,687.36,0.97145781]
[1752602762457,0.97761632,688.19,687.35,0.97145781]
[1752602763157,0.97761632,688.18,687.35,0.97145781]
[1752602763362,0.97761632,688.19,687.35,0.97145781]
[1752602764062,0.97761632,688.18,687.35,0.97145781]
[1752602764664,0.97761632,688.16,687.33,0.97145781]
[1752602765064,0.97761632,688.16,687.34,0.97145781]
[1752602765461,0.97761632,688.16,687.33,0.97145781]
[1752602766361,0.97761632,688.14,687.35,0.97145781]
[1752602766665,0.97761632,688.14,687.34,0.97145781]
[1752602766865,0.97761632,688.14,687.35,0.97145781]
[1752602770567,0.97761632,688.15,687.34,0.97145781]
[1752602770870,0.97761632,688.15,687.29,0.25294282]
[1752602770871,0.97761632,688.14,687.35,0.97145781]
[1752602772567,0.97761632,688.14,687.29,0.25294282]
[1752602772568,0.97761632,688.3,687.36,0.97145781]
[1752602777970,0.97761632,688.31,687.36,0.97145781]
[1752602778474,0.97761632,688.3,687.36,0.97145781]
[1752602779278,1.2979055,688.55,687.29,0.25294282]
[1752602779477,0.97632055,688.38,687.38,0.9696852]
[1752602779678,0.97632055,688.4,687.4,0.9696852]
[1752602780276,0.97632055,688.4,687.39,0.9696852]
[1752602780475,0.97632055,688.4,687.4,0.9696852]
[1752602781171,0.97632055,688.41,687.39,0.9696852]
[1752602784371,0.97632055,688.42,687.39,0.9696852]
[1752602785178,0.97632055,688.42,687.38,0.9696852]
[1752602785679,0.97632055,688.4,687.37,0.9696852]
[1752602786478,0.97632055,688.4,687.29,0.25294282]
[1752602786479,0.97632055,688.4,687.36,0.9696852]
[1752602786978,0.97632055,688.4,687.37,0.9696852]
[1752602787278,0.97632055,688.4,687.36,0.9696852]
[1752602787474,0.97632055,688.41,687.36,0.9696852]
[1752602787778,0.97632055,688.4,687.36,0.9696852]
[1752602788279,0.97632055,688.4,687.29,0.25294282]
[1752602788280,0.97632055,688.3,687.42,0.9696852]
[1752602788980,0.97632055,688.26,687.39,0.9696852]
[1752602789479,0.97632055,688.23,687.36,0.9696852]
[1752602790279,0.97632055,688.23,687.35,0.9696852]
[1752602791481,0.97632055,688.23,687.36,0.9696852]
[1752602791682,0.97632055,688.2,687.38,0.9696852]
[1752602792081,0.97632055,688.21,687.37,0.9696852]
[1752602792382,0.97632055,688.2,687.37,0.9696852]
[1752602792882,0.97632055,688.21,687.37,0.9696852]
[1752602793383,0.9759592,688.21,687.37,0.96966058]
[1752602793882,0.9759592,688.21,687.29,0.25294282]
[1752602793883,0.9759592,688.25,687.35,0.96966058]
[1752602795480,0.9759592,688.24,687.35,0.96966058]
[1752602796186,0.9759592,688.24,687.36,0.96966058]
[1752602796382,0.9759592,688.26,687.37,0.96966058]
[1752602796586,0.9759592,688.25,687.38,0.96966058]
[1752602797287,0.9759592,688.26,687.39,0.96966058]
[1752602797486,0.9759592,688.23,687.44,0.96966058]
[1752602798288,0.9759592,688.24,687.44,0.96966058]
[1752602798487,0.9759592,688.23,687.45,0.96966058]
[1752602799285,0.9759592,688.23,687.31,1.2868929]
[1752602799286,0.9759592,688.24,687.47,0.96966058]
[1752602799487,0.9759592,688.23,687.47,0.96966058]
[1752602799888,0.9759592,688.23,687.48,0.96966058]
[1752602800291,0.9759592,688.24,687.49,0.96966058]
[1752602800590,0.9759592,688.25,687.5,0.96966058]
[1752602800889,0.9759592,688.25,687.51,0.96966058]
[1752602801291,0.9759592,688.24,687.51,0.96966058]
[1752602801788,0.9759592,688.22,687.5,0.96966058]
[1752602802389,0.9759592,688.23,687.52,0.96966058]
[1752602802589,0.9759592,688.23,687.53,0.96966058]
[1752602803387,0.9759592,688.24,687.52,0.96966058]
[1752602804591,0.9759592,688.22,687.51,0.96966058]
[1752602805189,0.9759592,688.21,687.5,0.96966058]
[1752602806491,0.9759592,688.2,687.51,0.96966058]
[1752602807390,0.9759592,688.2,687.29,0.25294282]
[1752602807391,0.9759592,688.18,687.52,0.96966058]
[1752602808195,0.9759592,688.18,687.53,0.96966058]
[1752602808596,0.9759592,688.17,687.53,0.96966058]
[1752602809390,0.9759592,688.16,687.54,0.96966058]
[1752602810196,0.9759592,688.16,687.55,0.96966058]
[1752602810394,0.9759592,688.15,687.55,0.96966058]
[1752602810694,0.9759592,688.19,687.53,0.96966058]
[1752602811399,0.9759592,688.18,687.54,0.96966058]
[1752602812399,0.9759592,688.17,687.55,0.96966058]
[1752602813100,0.9759592,688.16,687.56,0.96966058]
[1752602813400,0.9759592,688.15,687.56,0.96966058]
[1752602817204,0.9759592,688.16,687.56,0.96966058]
[1752602819409,0.9759592,688.16,687.55,0.96966058]
[1752602819607,0.9759592,688.17,687.55,0.96966058]
[1752602820509,0.9759592,688.13,687.57,0.96966058]
[1752602820709,0.9759592,688.14,687.57,0.96966058]
[1752602821308,0.9759592,688.13,687.57,0.96966058]
[1752602821709,0.9759592,688.14,687.57,0.96966058]
[1752602822107,0.9759592,688.13,687.59,0.96966058]
[1752602822308,0.9759592,688.13,687.58,0.96966058]
[1752602822712,0.9759592,688.14,687.57,0.96966058]
[1752602822910,0.9759592,688.05,687.48,0.96966058]
[1752602823312,0.9759592,688.04,687.48,0.96966058]
[1752602823512,0.9759592,688.09,687.44,0.96966058]
[1752602823710,0.9759592,688.1,687.45,0.96966058]
[1752602824314,0.9759592,688.11,687.44,0.96966058]
[1752602824708,0.9759592,688.12,687.44,0.96966058]
[1752602824910,0.9759592,688.1,687.45,0.96966058]
[1752602825112,0.9759592,688.19,687.37,0.96966058]
[1752602825315,0.9759592,687.93,687.29,0.25294282]
[1752602825510,0.9759592,687.91,687.29,0.25294282]
[1752602825714,0.9759592,687.84,687.29,0.25294282]
[1752602825910,0.9759592,687.81,687.29,0.25294282]
[1752602826111,0.9759592,687.78,687.29,0.25294282]
[1752602826512,1.9468583,688.12,687.29,0.25294282]
[1752602826513,0.9759592,687.75,687.29,0.25294282]
[1752602827215,0.9759592,687.77,687.29,0.25294282]
[1752602827515,0.9759592,687.79,687.29,0.25294282]
[1752602828316,0.9759592,687.78,687.29,0.25294282]
[1752602828513,0.9759592,687.84,687.29,0.25294282]
[1752602828713,0.9759592,687.86,687.29,0.25294282]
[1752602828913,0.9759592,687.9,687.29,0.25294282]
[1752602829217,0.9759592,687.89,687.29,0.25294282]
[1752602829412,0.9759592,687.9,687.29,0.25294282]
[1752602829616,0.9759592,687.92,687.29,0.25294282]
[1752602830213,0.9759592,687.95,687.29,0.25294282]
[1752602830414,0.9759592,687.94,687.29,0.25294282]
[1752602830617,0.9759592,687.92,687.29,0.25294282]
[1752602830819,0.9759592,687.94,687.29,0.25294282]
[1752602831119,0.9759592,687.92,687.29,0.25294282]
[1752602831618,0.9759592,687.91,687.29,0.25294282]
[1752602831920,0.9759592,687.93,687.29,0.25294282]
[1752602832419,0.9759592,687.94,687.29,0.25294282]
[1752602832615,0.9759592,687.92,687.29,0.25294282]
[1752602833314,0.9759592,687.93,687.29,0.25294282]
[1752602834020,0.9759592,687.96,687.29,0.25294282]
[1752602834819,0.9759592,687.91,687.29,0.25294282]
[1752602835120,0.9759592,687.9,687.29,0.25294282]
[1752602835416,0.9759592,687.91,687.29,0.25294282]
[1752602836418,1.2979055,688.07,687.29,0.25294282]
[1752602836419,0.9759592,687.92,687.29,0.25294282]
[1752602837316,0.9759592,687.93,687.29,0.25294282]
[1752602837722,0.9759592,687.92,687.29,0.25294282]
[1752602838220,0.9759592,687.93,687.29,0.25294282]
[1752602838921,0.9759592,687.95,687.29,0.25294282]
[1752602840418,0.9759592,687.96,687.29,0.25294282]
[1752602841021,0.9759592,687.95,687.29,0.25294282]
[1752602841424,0.9759592,687.96,687.29,0.25294282]
[1752602843020,0.9759592,687.92,687.29,0.25294282]
[1752602843222,0.9759592,687.93,687.29,0.25294282]
[1752602843721,0.9759592,687.99,687.29,0.25294282]
[1752602844826,0.9759592,688.0,687.29,0.25294282]
[1752602845522,0.25303202,688.23,687.29,0.25294282]
[1752602845523,0.9759592,687.99,687.29,0.25294282]
[1752602846427,0.9759592,688.11,687.15,0.25307158]
[1752602846824,0.9759592,688.12,687.15,0.25307158]
[1752602847128,0.9759592,688.09,687.15,0.25307158]
[1752602847527,0.9759592,688.08,687.15,0.25307158]
[1752602848324,0.9759592,688.09,687.15,0.25307158]
[1752602848528,0.9759592,688.07,687.15,0.25307158]
[1752602848724,0.9759592,688.03,687.15,0.25307158]
[1752602848924,0.9759592,687.82,687.15,0.25307158]
[1752602850827,0.9759592,687.83,687.15,0.25307158]
[1752602851427,0.9759592,687.84,687.15,0.25307158]
[1752602851829,0.9759592,687.83,687.15,0.25307158]
[1752602852031,0.9759592,687.8,687.15,0.25307158]
[1752602852327,0.9759592,687.81,687.15,0.25307158]
[1752602853527,0.9759592,687.82,687.15,0.25307158]
[1752602855233,0.9759592,687.83,687.15,0.25307158]
[1752602857334,0.9759592,687.84,687.15,0.25307158]
[1752602857531,0.9759592,687.83,687.15,0.25307158]
[1752602858636,0.9759592,687.82,687.15,0.25307158]
[1752602858933,0.9759592,687.85,687.15,0.25307158]
[1752602859133,0.9759592,687.84,687.15,0.25307158]
[1752602859333,0.9759592,687.85,687.15,0.25307158]
[1752602861834,0.9759592,687.82,687.15,0.25307158]
[1752602862237,0.25303202,688.23,687.15,0.25307158]
[1752602862238,0.9759592,687.81,687.15,0.25307158]
[1752602863639,0.9759592,687.82,687.15,0.25307158]
[1752602863935,0.9759592,687.84,687.15,0.25307158]
[1752602864140,0.9759592,687.83,687.15,0.25307158]
[1752602867144,0.9759592,687.82,687.15,0.25307158]
[1752602867638,0.9759592,687.83,687.15,0.25307158]
[1752602868339,0.9759592,687.82,687.15,0.25307158]
[1752602868747,0.9759592,687.8,687.15,0.25307158]
[1752602868943,0.9759592,687.81,687.15,0.25307158]
[1752602870243,0.9759592,687.8,687.15,0.25307158]
[1752602871048,0.9759592,687.81,687.15,0.25307158]
[1752602871243,0.9759592,687.8,687.15,0.25307158]
[1752602872243,0.9759592,687.79,687.15,0.25307158]
[1752602872746,0.9759592,687.8,687.15,0.25307158]
[1752602872942,0.9759592,687.81,687.15,0.25307158]
[1752602873147,0.9759592,687.8,687.15,0.25307158]
[1752602873848,0.9759592,687.79,687.15,0.25307158]
[1752602874249,0.9759592,687.78,687.15,0.25307158]
[1752602874650,0.9759592,687.79,687.15,0.25307158]
[1752602875347,0.9759592,687.78,687.15,0.25307158]
[1752602875848,0.9759592,687.79,687.15,0.25307158]
[1752602876048,0.9759592,687.83,687.15,0.25307158]
[1752602876248,0.9759592,687.81,687.15,0.25307158]
[1752602877149,0.9759592,687.8,687.15,0.25307158]
[1752602878053,0.9759592,687.81,687.15,0.25307158]
[1752602878253,0.9759592,687.79,687.15,0.25307158]
[1752602878751,0.9759592,687.76,687.15,0.25307158]
[1752602879154,0.9759592,687.75,687.15,0.25307158]
[1752602880553,0.9759592,687.72,687.15,0.25307158]